fUSD/lending_fUSD_20250127
["ID","MTS","AMOUNT","RATE_DAILY","PERIOD"]
[350566569,1737965467996,-942.7,0.00011914,2]
[350566570,1737965468006,-520.64,0.00011914,2]
[350566571,1737965468017,-500.0,0.00011914,2]
[350566572,1737965468026,-575.84,0.00011914,2]
[350566573,1737965468036,-500.0,0.00011914,2]
[350566574,1737965468046,-500.0,0.00011914,2]
[350566575,1737965468056,-500.0,0.00011914,2]
[350566576,1737965468066,-617.29,0.00011914,2]
[350566577,1737965468077,-500.0,0.00011915,2]
[350566578,1737965468087,-500.0,0.00011915,2]
[350566579,1737965468096,-500.0,0.00011915,2]
[350566580,1737965468107,-500.0,0.00011915,2]
[350566581,1737965468117,-500.0,0.00011915,2]
[350566582,1737965468127,-500.0,0.00011915,2]
[350566583,1737965468137,-500.0,0.00011915,2]
[350566584,1737965468147,-559.7,0.00011915,2]
[350566585,1737965468156,-500.0,0.00011915,2]
[350566586,1737965468166,-500.0,0.00011915,2]
[350566587,1737965468176,-500.0,0.00011915,2]
[350566588,1737965468186,-500.0,0.00011915,2]
[350566589,1737965468196,-500.0,0.00011915,2]
[350566590,1737965468206,-500.0,0.00011915,2]
[350566591,1737965468215,-500.0,0.00011915,2]
[350566592,1737965468225,-500.0,0.00011915,2]
[350566593,1737965468235,-500.0,0.00011915,2]
[350566594,1737965468245,-500.0,0.00011915,2]
[350566595,1737965468254,-500.0,0.00011915,2]
[350566596,1737965468264,-500.0,0.00011915,2]
[350566597,1737965468274,-500.0,0.00011915,2]
[350566598,1737965468284,-500.0,0.00011915,2]
[350566599,1737965468295,-500.0,0.00011915,2]
[350566600,1737965468304,-153.26170881,0.00011915,2]
[350566601,1737965468316,-500.0,0.00011915,2]
[350566602,1737965468328,-500.0,0.00011915,2]
[350566603,1737965468339,-500.0,0.00011915,2]
[350566604,1737965468349,-500.0,0.00011915,2]
[350566605,1737965468360,-500.0,0.00011915,2]
[350566606,1737965468369,-500.0,0.00011915,2]
[350566607,1737965468380,-500.0,0.00011915,2]
[350566608,1737965468389,-500.0,0.00011915,2]
[350566609,1737965468401,-500.0,0.00011915,2]
[350566610,1737965468413,-500.0,0.00011915,2]
[350566611,1737965468423,-500.0,0.00011915,2]
[350566612,1737965468433,-500.0,0.00011915,2]
[350566613,1737965468443,-500.0,0.00011915,2]
[350566614,1737965468574,-500.0,0.00011915,2]
[350566615,1737965468591,-500.0,0.00011915,2]
[350566616,1737965468602,-500.0,0.00011915,2]
[350566617,1737965468612,-500.0,0.00011915,2]
[350566618,1737965468622,-500.0,0.00011915,2]
[350566619,1737965468632,-500.0,0.00011915,2]
[350566620,1737965468643,-500.0,0.00011915,2]
[350566621,1737965468653,-500.0,0.00011915,2]
[350566622,1737965468663,-500.0,0.00011915,2]
[350566623,1737965468673,-500.0,0.00011915,2]
[350566624,1737965468682,-500.0,0.00011915,2]
[350566625,1737965468692,-500.0,0.00011915,2]
[350566626,1737965468701,-500.0,0.00011915,2]
[350566627,1737965468712,-500.0,0.00011915,2]
[350566628,1737965468722,-500.0,0.00011915,2]
[350566629,1737965468734,-500.0,0.00011915,2]
[350566630,1737965468743,-500.0,0.00011915,2]
[350566631,1737965468754,-500.0,0.00011915,2]
[350566632,1737965468763,-500.0,0.00011915,2]
[350566633,1737965468773,-500.0,0.00011915,2]
[350566634,1737965468783,-500.0,0.00011915,2]
[350566635,1737965468792,-500.0,0.00011915,2]
[350566636,1737965468803,-500.0,0.00011915,2]
[350566637,1737965468814,-500.0,0.00011915,2]
[350566638,1737965468824,-500.0,0.00011915,2]
[350566639,1737965468833,-500.0,0.00011915,2]
[350566640,1737965468843,-500.0,0.00011915,2]
[350566641,1737965468852,-500.0,0.00011915,2]
[350566642,1737965468862,-500.0,0.00011915,2]
[350566643,1737965468871,-500.0,0.00011915,2]
[350566644,1737965468881,-500.0,0.00011915,2]
[350566645,1737965468890,-500.0,0.00011915,2]
[350566646,1737965468900,-500.0,0.00011915,2]
[350566647,1737965468910,-500.0,0.00011915,2]
[350566648,1737965468920,-500.0,0.00011915,2]
[350566649,1737965468930,-500.0,0.00011915,2]
[350566650,1737965468941,-500.0,0.00011915,2]
[350566651,1737965468950,-500.0,0.00011915,2]
[350566652,1737965468960,-480.25131086,0.00011915,2]
[350566653,1737965468970,-500.0,0.00011915,2]
[350566654,1737965468980,-500.0,0.00011915,2]
[350566655,1737965468990,-1278.17,0.00011915,2]
[350566656,1737965468999,-500.0,0.00011915,2]
[350566657,1737965469009,-500.0,0.00011915,2]
[350566658,1737965469019,-500.0,0.00011915,2]
[350566659,1737965469028,-1139.59,0.00011915,2]
[350566660,1737965469037,-500.0,0.00011915,2]
[350566661,1737965469047,-686.46,0.00011915,2]
[350566662,1737965469056,-1152.99,0.00011915,2]
[350566663,1737965469067,-184.65,0.00011915,2]
[350566664,1737965469077,-164.5879989,0.00011915,2]
[350566665,1737965469087,-500.0,0.00011915,2]
[350566666,1737965469096,-500.0,0.00011915,2]
[350566667,1737965469106,-296.232655,0.00011915,2]
[350566668,1737965469115,-500.0,0.00011915,2]
[350566669,1737965469125,-500.0,0.00011915,2]
[350566670,1737965469135,-833.0,0.00011915,2]
[350566671,1737965469144,-537.9,0.00011915,2]
[350566672,1737965469154,-7995.13,0.00011915,2]
[350566673,1737965469164,-533.28,0.00011915,2]
[350566674,1737965469174,-5663.95,0.00011915,2]
[350566675,1737965469184,-500.0,0.00011915,2]
[350566676,1737965469194,-500.0,0.00011915,2]
[350566677,1737965469204,-500.0,0.00011915,2]
[350566678,1737965469214,-1051.37,0.00011915,2]
[350566679,1737965469224,-500.0,0.00011915,2]
[350566680,1737965469234,-1608.24,0.00011915,2]
[350566681,1737965469243,-827.97,0.00011915,2]
[350566682,1737965469253,-500.0,0.00011915,2]
[350566683,1737965469262,-1193.97,0.00011915,2]
[350566684,1737965469271,-500.0,0.00011915,2]
[350566685,1737965469281,-841.29,0.00011915,2]
[350566686,1737965469291,-1330.82,0.00011915,2]
[350566687,1737965469300,-500.0,0.00011915,2]
[350566688,1737965469310,-623.54,0.00011915,2]
[350566689,1737965469325,-500.0,0.00011915,2]
[350566690,1737965469335,-928.32,0.00011915,2]
[350566691,1737965469346,-851.8,0.00011915,2]
[350566692,1737965469356,-500.0,0.00011915,2]
[350566693,1737965469365,-500.0,0.00011915,2]
[350566694,1737965469376,-820.47,0.00011915,2]
[350566695,1737965469386,-1216.92,0.00011915,2]
[350566696,1737965469396,-500.0,0.00011915,2]
[350566697,1737965469407,-420.43678637,0.00011915,2]
[350566698,1737965469417,-500.0,0.00011915,2]
[350566699,1737965469427,-500.0,0.00011915,2]
[350566700,1737965469437,-500.0,0.00011915,2]
[350566701,1737965469446,-500.0,0.00011915,2]
[350566702,1737965469455,-500.0,0.00011915,2]
[350566703,1737965469465,-652.15,0.00011915,2]
[350566704,1737965469475,-500.0,0.00011915,2]
[350566705,1737965469485,-633.47,0.00011915,2]
[350566706,1737965469494,-500.0,0.00011915,2]
[350566707,1737965469504,-1133.12,0.00011915,2]
[350566708,1737965469513,-1644.6,0.00011915,2]
[350566709,1737965469523,-1170.82,0.00011915,2]
[350566710,1737965469533,-1139.24,0.00011915,2]
[350566711,1737965469543,-1019.32,0.00011915,2]
[350566712,1737965469553,-500.0,0.00011915,2]
[350566713,1737965469569,-500.0,0.00011915,2]
[350566714,1737965469579,-2129.14,0.00011915,2]
[350566715,1737965469589,-550.36,0.00011915,2]
[350566716,1737965469598,-1127.57,0.00011915,2]
[350566717,1737965469609,-500.0,0.00011915,2]
[350566718,1737965469618,-1461.39,0.00011915,2]
[350566719,1737965469627,-564.37,0.00011915,2]
[350566720,1737965469637,-770.46,0.00011915,2]
[350566721,1737965469647,-1347.75,0.00011915,2]
[350566722,1737965469657,-500.0,0.00011915,2]
[350566723,1737965469666,-1053.45,0.00011915,2]
[350566724,1737965469676,-1292.86,0.00011915,2]
[350566725,1737965469686,-536.42,0.00011915,2]
[350566726,1737965469695,-564.84,0.00011915,2]
[350566727,1737965469705,-698.45,0.00011915,2]
[350566728,1737965469719,-780.59,0.00011915,2]
[350566729,1737965469729,-500.0,0.00011915,2]
[350566730,1737965469738,-2165.73,0.00011915,2]
[350566731,1737965469747,-500.0,0.00011915,2]
[350566732,1737965469758,-500.0,0.00011915,2]
[350566733,1737965469768,-500.0,0.00011915,2]
[350566734,1737965469777,-730.65,0.00011915,2]
[350566735,1737965469787,-665.8,0.00011915,2]
[350566736,1737965469797,-770.01,0.00011915,2]
[350566737,1737965469807,-712.39,0.00011915,2]
[350566738,1737965469819,-942.7,0.00011915,2]
[350566739,1737965469828,-520.64,0.00011915,2]
[350566740,1737965469838,-500.0,0.00011915,2]
[350566741,1737965469848,-575.84,0.00011915,2]
[350566742,1737965469857,-500.0,0.00011915,2]
[350566743,1737965469867,-327.10233327,0.00011915,2]
[350566744,1737965469877,-500.0,0.00011915,2]
[350566745,1737965469888,-1253.22,0.00011915,2]
[350566746,1737965469898,-222.86183332,0.00011915,2]
[350566747,1737965469907,-617.29,0.00011915,2]
[350566748,1737965469917,-2000.0,0.00011916,2]
[350566749,1737965469927,-200.0,0.00011916,2]
[350566750,1737965469937,-500.0,0.00011916,2]
[350566751,1737965469947,-500.0,0.00011916,2]
[350566752,1737965469956,-500.0,0.00011916,2]
[350566753,1737965469966,-500.0,0.00011916,2]
[350566754,1737965469976,-500.0,0.00011916,2]
[350566755,1737965469985,-500.0,0.00011916,2]
[350566756,1737965469995,-511.44402339,0.00011916,2]
[350566757,1737965470006,-500.0,0.00011916,2]
[350566758,1737965470015,-500.0,0.00011916,2]
[350566759,1737965470025,-500.0,0.00011916,2]
[350566760,1737965470036,-500.0,0.00011916,2]
[350566761,1737965470045,-194.49177999,0.00011916,2]
[350566762,1737965470055,-500.0,0.00011916,2]
[350566763,1737965470066,-500.0,0.00011916,2]
[350566764,1737965470075,-313.99970933,0.00011916,2]
[350566765,1737965470085,-500.98860579,0.00011916,2]
[350566766,1737965470095,-512.99031839,0.00011916,2]
[350566767,1737965470104,-500.0,0.00011916,2]
[350566768,1737965470114,-500.0,0.00011916,2]
[350566769,1737965470123,-500.0,0.00011916,2]
[350566770,1737965470133,-500.0,0.00011916,7]
[350566771,1737965470141,-500.0,0.00011916,2]
[350566772,1737965470151,-500.0,0.00011916,2]
[350566773,1737965470160,-500.0,0.00011916,2]
[350566774,1737965470170,-500.0,0.00011916,2]
[350566775,1737965470179,-518.36542192,0.00011916,2]
[350566776,1737965470189,-500.0,0.00011916,2]
[350566777,1737965470198,-500.0,0.00011916,2]
[350566778,1737965470208,-500.0,0.00011916,2]
[350566779,1737965470217,-500.0,0.00011916,2]
[350566780,1737965470227,-500.0,0.00011916,2]
[350566781,1737965470236,-500.0,0.00011916,2]
[350566782,1737965470245,-500.0,0.00011916,2]
[350566783,1737965470255,-503.47558965,0.00011916,2]
[350566784,1737965470265,-500.0,0.00011916,2]
[350566785,1737965470274,-500.9929406,0.00011916,2]
[350566786,1737965470284,-500.0,0.00011916,2]
[350566787,1737965470294,-500.0,0.00011916,2]
[350566788,1737965470303,-506.49982391,0.00011916,2]
[350566789,1737965470313,-500.0,0.00011916,2]
[350566790,1737965470324,-511.701401,0.00011916,2]
[350566791,1737965470334,-508.03683817,0.00011916,2]
[350566792,1737965470344,-500.0,0.00011916,2]
[350566793,1737965470354,-500.0,0.00011916,2]
[350566794,1737965470364,-338.93211426,0.00011916,2]
[350566795,1737965470374,-2340.159,0.00011916,2]
[350566796,1737965470384,-162.769,0.00011916,2]
[350566797,1737965470394,-500.0,0.00011916,2]
[350566798,1737965470403,-500.0,0.00011916,2]
[350566799,1737965470413,-500.0,0.00011916,2]
[350566800,1737965470422,-500.0,0.00011916,2]
[350566801,1737965470432,-500.0,0.00011916,2]
[350566802,1737965470441,-500.0,0.00011916,2]
[350566803,1737965470450,-510.45866329,0.00011916,2]
[350566804,1737965470460,-500.0,0.00011916,2]
[350566805,1737965470469,-500.0,0.00011916,2]
[350566806,1737965470479,-500.0,0.00011916,2]
[350566807,1737965470488,-500.0,0.00011916,2]
[350566808,1737965470497,-500.0,0.00011916,2]
[350566809,1737965470507,-500.0,0.00011916,2]
[350566810,1737965470517,-500.0,0.00011916,2]
[350566811,1737965470526,-500.0,0.00011916,2]
[350566812,1737965470536,-500.0,0.00011916,2]
[350566813,1737965470659,-500.0,0.00011916,2]
[350566814,1737965470670,-500.0,0.00011916,2]
[350566815,1737965470679,-500.0,0.00011916,2]
[350566816,1737965470689,-500.0,0.00011916,2]
[350566817,1737965470699,-500.0,0.00011916,2]
[350566818,1737965470709,-500.0,0.00011916,2]
[350566819,1737965470719,-500.0,0.00011916,2]
[350566820,1737965470731,-500.0,0.00011916,2]
[350566821,1737965470740,-691.7,0.00011916,2]
[350566822,1737965470749,-500.0,0.00011916,2]
[350566823,1737965470758,-500.0,0.00011916,2]
[350566824,1737965470768,-632.71,0.00011916,2]
[350566825,1737965470777,-500.0,0.00011916,2]
[350566826,1737965470787,-1899.98305824,0.00011916,2]
[350566827,1737965470797,-500.0,0.00011916,2]
[350566828,1737965470807,-500.0,0.00011916,2]
[350566829,1737965470818,-500.0,0.00011916,2]
[350566830,1737965470828,-200.0,0.00011916,2]
[350566831,1737965470838,-500.0,0.00011916,2]
[350566832,1737965470847,-500.0,0.00011916,2]
[350566833,1737965470857,-500.0,0.00011916,2]
[350566834,1737965470866,-500.0,0.00011916,2]
[350566835,1737965470876,-500.0,0.00011916,2]
[350566836,1737965470886,-500.0,0.00011916,2]
[350566837,1737965470896,-500.0,0.00011916,2]
[350566838,1737965470906,-500.0,0.00011916,2]
[350566839,1737965470916,-625.44,0.00011916,2]
[350566840,1737965470925,-500.0,0.00011916,2]
[350566841,1737965470934,-501.22749575,0.00011916,2]
[350566842,1737965470944,-702.78,0.00011916,2]
[350566843,1737965470953,-500.0,0.00011916,2]
[350566844,1737965470963,-241.38662236,0.00011916,2]
[350566845,1737965470972,-500.0,0.00011916,2]
[350566846,1737965470982,-500.0,0.00011916,2]
[350566847,1737965470992,-500.0,0.00011916,2]
[350566848,1737965471001,-500.0,0.00011916,2]
[350566849,1737965471011,-500.0,0.00011916,2]
[350566850,1737965471021,-559.7,0.00011916,2]
[350566851,1737965471030,-548.48360943,0.00011916,2]
[350566852,1737965471040,-500.0,0.00011916,2]
[350566853,1737965471050,-500.0,0.00011916,2]
[350566854,1737965471059,-500.0,0.00011916,2]
[350566855,1737965471071,-153.428281,0.00011916,2]
[350566856,1737965471080,-500.0,0.00011916,2]
[350566857,1737965471090,-500.0,0.00011916,2]
[350566858,1737965471099,-500.0,0.00011916,2]
[350566859,1737965471108,-500.0,0.00011916,2]
[350566860,1737965471118,-512.16609714,0.00011916,2]
[350566861,1737965471127,-500.0,0.00011916,2]
[350566862,1737965471136,-500.0,0.00011916,2]
[350566863,1737965471146,-500.0,0.00011916,2]
[350566864,1737965471155,-500.0,0.00011916,2]
[350566865,1737965471165,-500.0,0.00011916,2]
[350566866,1737965471174,-500.0,0.00011916,2]
[350566867,1737965471183,-500.0,0.00011916,2]
[350566868,1737965471192,-331.49245896,0.00011916,2]
[350566869,1737965471202,-500.0,0.00011916,2]
[350566870,1737965471211,-505.15665573,0.00011916,2]
[350566871,1737965471220,-500.0,0.00011916,2]
[350566872,1737965471230,-308.85093813,0.00011916,2]
[350566873,1737965471239,-500.0,0.00011916,2]
[350566874,1737965471248,-500.0,0.00011916,2]
[350566875,1737965471257,-500.0,0.00011916,2]
[350566876,1737965471266,-500.0,0.00011916,2]
[350566877,1737965471276,-500.0,0.00011916,2]
[350566878,1737965471285,-248.29368683,0.00011916,2]
[350566879,1737965471294,-500.0,0.00011916,2]
[350566880,1737965471304,-204.84046547,0.00011916,2]
[350566881,1737965471313,-257.743124,0.00011916,2]
[350566882,1737965471326,-500.0,0.00011916,2]
[350566883,1737965471336,-500.0,0.00011916,2]
[350566884,1737965471345,-500.0,0.00011916,2]
[350566885,1737965471355,-500.0,0.00011916,2]
[350566886,1737965471364,-500.0,0.00011916,2]
[350566887,1737965471374,-500.0,0.00011916,2]
[350566888,1737965471384,-506.76623329,0.00011916,2]
[350566889,1737965471394,-500.0,0.00011916,2]
[350566890,1737965471404,-500.0,0.00011916,2]
[350566891,1737965471414,-500.0,0.00011916,2]
[350566892,1737965471424,-2820.20429,0.00011916,2]
[350566893,1737965471434,-500.0,0.00011916,2]
[350566894,1737965471443,-500.0,0.00011916,2]
[350566895,1737965471452,-1278.17,0.00011916,2]
[350566896,1737965471463,-500.0,0.00011916,2]
[350566897,1737965471472,-151.171379,0.00011916,2]
[350566898,1737965471483,-500.0,0.00011916,2]
[350566899,1737965471493,-500.0,0.00011916,2]
[350566900,1737965471502,-1139.59,0.00011916,2]
[350566901,1737965471513,-500.0,0.00011916,2]
[350566902,1737965471523,-686.46,0.00011916,2]
[350566903,1737965471533,-1152.99,0.00011916,2]
[350566904,1737965471543,-412.62182331,0.00011916,2]
[350566905,1737965471552,-500.0,0.00011916,2]
[350566906,1737965471562,-296.232655,0.00011916,2]
[350566907,1737965471576,-500.0,0.00011916,2]
[350566908,1737965471585,-500.0,0.00011916,2]
[350566909,1737965471594,-833.0,0.00011916,2]
[350566910,1737965471604,-537.9,0.00011916,2]
[350566911,1737965471614,-7995.13,0.00011916,2]
[350566912,1737965471624,-533.28,0.00011916,2]
[350566913,1737965471635,-5663.95,0.00011916,2]
[350566914,1737965471644,-500.0,0.00011916,2]
[350566915,1737965471653,-500.0,0.00011916,2]
[350566916,1737965471663,-500.0,0.00011916,2]
[350566917,1737965471672,-1051.37,0.00011916,2]
[350566918,1737965471682,-500.0,0.00011916,2]
[350566919,1737965471692,-1608.24,0.00011916,2]
[350566920,1737965471701,-827.97,0.00011916,2]
[350566921,1737965471713,-500.0,0.00011916,2]
[350566922,1737965471723,-1193.97,0.00011916,2]
[350566923,1737965471732,-500.0,0.00011916,2]
[350566924,1737965471742,-841.29,0.00011916,2]
[350566925,1737965471751,-1330.82,0.00011916,2]
[350566926,1737965471761,-500.0,0.00011916,2]
[350566927,1737965471771,-623.54,0.00011916,2]
[350566928,1737965471780,-928.32,0.00011916,2]
[350566929,1737965471791,-851.8,0.00011916,2]
[350566930,1737965471801,-500.0,0.00011916,2]
[350566931,1737965471810,-289.04868745,0.00011916,2]
[350566932,1737965471824,-820.47,0.00011916,2]
[350566933,1737965471834,-1216.92,0.00011916,2]
[350566934,1737965471843,-615.77,0.00011916,2]
[350566935,1737965471853,-500.0,0.00011916,2]
[350566936,1737965471862,-500.0,0.00011916,2]
[350566937,1737965471871,-633.59997539,0.00011916,2]
[350566938,1737965471881,-500.0,0.00011916,2]
[350566939,1737965471891,-500.0,0.00011916,2]
[350566940,1737965471902,-652.15,0.00011916,2]
[350566941,1737965471913,-500.0,0.00011916,2]
[350566942,1737965471923,-633.47,0.00011916,2]
[350566943,1737965471933,-500.0,0.00011916,2]
[350566944,1737965471942,-1133.12,0.00011916,2]
[350566945,1737965471952,-1644.6,0.00011916,2]
[350566946,1737965471961,-1170.82,0.00011916,2]
[350566947,1737965471971,-1139.24,0.00011916,2]
[350566948,1737965471981,-1019.32,0.00011916,2]
[350566949,1737965471991,-500.0,0.00011916,2]
[350566950,1737965472000,-500.0,0.00011916,2]
[350566951,1737965472010,-2129.14,0.00011916,2]
[350566952,1737965472019,-550.36,0.00011916,2]
[350566953,1737965472029,-1127.57,0.00011916,2]
[350566954,1737965472038,-500.0,0.00011916,2]
[350566955,1737965472047,-1461.39,0.00011916,2]
[350566956,1737965472056,-564.37,0.00011916,2]
[350566957,1737965472066,-770.46,0.00011916,2]
[350566958,1737965472080,-1347.75,0.00011916,2]
[350566959,1737965472090,-500.0,0.00011916,2]
[350566960,1737965472099,-1053.45,0.00011916,2]
[350566961,1737965472109,-1292.86,0.00011916,2]
[350566962,1737965472118,-536.42,0.00011916,2]
[350566963,1737965472128,-564.84,0.00011916,2]
[350566964,1737965472138,-698.45,0.00011916,2]
[350566965,1737965472147,-780.59,0.00011916,2]
[350566966,1737965472156,-500.0,0.00011916,2]
[350566967,1737965472166,-2165.73,0.00011916,2]
[350566968,1737965472176,-500.0,0.00011916,2]
[350566969,1737965472185,-500.0,0.00011916,2]
[350566970,1737965472195,-500.0,0.00011916,2]
[350566971,1737965472205,-730.65,0.00011916,2]
[350566972,1737965472214,-665.8,0.00011916,2]
[350566973,1737965472224,-770.01,0.00011916,2]
[350566974,1737965472234,-712.39,0.00011916,2]
[350566975,1737965472243,-942.7,0.00011916,2]
[350566976,1737965472253,-520.64,0.00011916,2]
[350566977,1737965472262,-500.0,0.00011916,2]
[350566978,1737965472272,-575.84,0.00011916,2]
[350566979,1737965472280,-500.0,0.00011916,2]
[350566980,1737965472290,-500.0,0.00011916,2]
[350566981,1737965472299,-1253.22,0.00011916,2]
[350566982,1737965472309,-617.29,0.00011916,2]
[350566983,1737965472322,-8733.86489871,0.00011916,2]
[350566984,1737965472332,-200.0,0.00011917,2]
[350566985,1737965472341,-504.54398672,0.00011917,2]
[350566986,1737965472351,-500.0,0.00011917,2]
[350566987,1737965472360,-500.0,0.00011917,2]
[350566988,1737965472369,-500.0,0.00011917,2]
[350566989,1737965472378,-500.0,0.00011917,2]
[350566990,1737965472387,-300.0,0.00011917,2]
[350566991,1737965472396,-500.0,0.00011917,2]
[350566992,1737965472405,-500.0,0.00011917,2]
[350566993,1737965472414,-500.0,0.00011917,2]
[350566994,1737965472424,-500.0,0.00011917,2]
[350566995,1737965472433,-500.0,0.00011917,2]
[350566996,1737965472546,-500.0,0.00011917,2]
[350566997,1737965472556,-500.0,0.00011917,2]
[350566998,1737965472565,-500.0,0.00011917,2]
[350566999,1737965472577,-500.0,0.00011917,2]
[350567000,1737965472587,-500.0,0.00011917,2]
[350567001,1737965472597,-304.90413055,0.00011917,2]
[350567002,1737965472606,-500.0,0.00011917,2]
[350567003,1737965472615,-500.0,0.00011917,2]
[350567004,1737965472625,-500.0,0.00011917,2]
[350567005,1737965472633,-500.0,0.00011917,2]
[350567006,1737965472644,-500.0,0.00011917,2]
[350567007,1737965472653,-500.0,0.00011917,2]
[350567008,1737965472662,-500.0,0.00011917,2]
[350567009,1737965472671,-500.0,0.00011917,2]
[350567010,1737965472680,-559.7,0.00011917,2]
[350567011,1737965472689,-559.7,0.00011917,2]
[350567012,1737965472698,-559.7,0.00011917,2]
[350567013,1737965472711,-500.0,0.00011917,2]
[350567014,1737965472721,-500.0,0.00011917,2]
[350567015,1737965472730,-500.0,0.00011917,2]
[350567016,1737965472740,-500.0,0.00011917,2]
[350567017,1737965472749,-500.0,0.00011917,2]
[350567018,1737965472761,-500.0,0.00011917,2]
[350567019,1737965472771,-500.0,0.00011917,2]
[350567020,1737965472780,-500.0,0.00011917,2]
[350567021,1737965472790,-500.0,0.00011917,2]
[350567022,1737965472802,-500.0,0.00011917,2]
[350567023,1737965472812,-500.0,0.00011917,2]
[350567024,1737965472824,-500.0,0.00011917,2]
[350567025,1737965472833,-500.0,0.00011917,2]
[350567026,1737965472842,-500.0,0.00011917,2]
[350567027,1737965472851,-500.0,0.00011917,2]
[350567028,1737965472862,-500.0,0.00011917,2]
[350567029,1737965472871,-500.0,0.00011917,2]
[350567030,1737965472880,-500.0,0.00011917,2]
[350567031,1737965472891,-176.0,0.00011917,2]
[350567032,1737965472901,-500.0,0.00011917,2]
[350567033,1737965472911,-500.0,0.00011917,2]
[350567034,1737965472920,-500.0,0.00011917,2]
[350567035,1737965472929,-500.0,0.00011917,2]
[350567036,1737965472939,-500.0,0.00011917,2]
[350567037,1737965472949,-500.0,0.00011917,2]
[350567038,1737965472959,-500.0,0.00011917,2]
[350567039,1737965472969,-500.0,0.00011917,2]
[350567040,1737965472978,-500.0,0.00011917,2]
[350567041,1737965472988,-500.0,0.00011917,2]
[350567042,1737965472997,-500.0,0.00011917,2]
[350567043,1737965473008,-500.0,0.00011917,2]
[350567044,1737965473017,-500.0,0.00011917,2]
[350567045,1737965473026,-500.0,0.00011917,2]
[350567046,1737965473036,-500.0,0.00011917,2]
[350567047,1737965473046,-500.0,0.00011917,2]
[350567048,1737965473057,-500.0,0.00011917,2]
[350567049,1737965473067,-274.41179357,0.00011917,2]
[350567050,1737965473080,-500.0,0.00011917,2]
[350567051,1737965473089,-500.0,0.00011917,2]
[350567052,1737965473098,-544.08,0.00011917,2]
[350567053,1737965473107,-500.0,0.00011917,2]
[350567054,1737965473117,-519.52817159,0.00011917,2]
[350567055,1737965473127,-500.0,0.00011917,2]
[350567056,1737965473136,-500.0,0.00011917,2]
[350567057,1737965473146,-500.0,0.00011917,2]
[350567058,1737965473156,-500.0,0.00011917,2]
[350567059,1737965473166,-500.0,0.00011917,2]
[350567060,1737965473175,-500.0,0.00011917,2]
[350567061,1737965473185,-500.0,0.00011917,2]
[350567062,1737965473194,-500.0,0.00011917,2]
[350567063,1737965473204,-500.0,0.00011917,2]
[350567064,1737965473213,-500.0,0.00011917,2]
[350567065,1737965473222,-500.0,0.00011917,2]
[350567066,1737965473232,-500.0,0.00011917,2]
[350567067,1737965473242,-500.0,0.00011917,2]
[350567068,1737965473251,-500.0,0.00011917,2]